fUSD/lending_fUSD_20240528
["ID","MTS","AMOUNT","RATE_DAILY","PERIOD"]
[328146133,1716931849288,-309.8,0.0003403,2]
[328146134,1716931849298,-1946.33789749,0.00034235,10]
[328146135,1716931849307,-195.04476106,0.00034342,3]
[328146136,1716931849317,-2000.0,0.000344,12]
[328146137,1716931849326,-2008.38,0.000344,3]
[328146138,1716931849335,-2008.38,0.000344,3]
[328146139,1716931849344,-2008.38,0.000344,3]
[328146140,1716931849354,-2008.38,0.000344,3]
[328146141,1716931849363,-2008.38,0.000344,3]
[328146142,1716931849373,-515.30093457,0.000344,3]
[328146143,1716931849390,-313.99159286,0.000344,3]
[328146144,1716931849408,-450.51111099,0.000344,3]
[328146145,1716931849419,-626.50349443,0.000344,3]
[328146146,1716931849432,-102.07286715,0.000344,3]
[328146147,1716931849442,-2008.38,0.000344,3]
[328146148,1716931849451,-1056.90221902,0.000344,3]
[328146149,1716931849463,-520.25973436,0.000344,3]
[328146150,1716931849474,-431.21804662,0.000344,3]
[328146151,1716931849483,-532.75408699,0.000344,3]
[328146152,1716931849496,-1475.62591301,0.000344,3]
[328146153,1716931849505,-438.17984338,0.000344,3]
[328146154,1716931849517,-1570.20015662,0.000344,3]
[328146155,1716931849527,-2008.38,0.000344,3]
[328146156,1716931849536,-2008.38,0.000344,3]
[328146157,1716931849545,-2008.38,0.000344,3]
[328146158,1716931849556,-2008.38,0.000344,3]
[328146159,1716931849566,-2008.38,0.000344,3]
[328146160,1716931849575,-2008.38,0.000344,3]
[328146161,1716931849585,-2008.38,0.000344,3]
[328146162,1716931849594,-2008.38,0.000344,3]
[328146163,1716931849603,-2008.38,0.000344,3]
[328146164,1716931849614,-2008.38,0.000344,3]
[328146165,1716931849625,-2551.72,0.000344,3]
[328146166,1716931849636,-2551.72,0.000344,3]
[328146167,1716931849647,-2551.72,0.000344,3]
[328146168,1716931849657,-2551.72,0.000344,3]
[328146169,1716931849673,-2551.72,0.000344,3]
[328146170,1716931849682,-2551.72,0.000344,3]
[328146171,1716931849692,-2551.72,0.000344,3]
[328146172,1716931849703,-2551.72,0.000344,3]
[328146173,1716931849712,-2551.72,0.000344,3]
[328146174,1716931849723,-2551.72,0.000344,3]
[328146175,1716931849732,-2551.72,0.000344,3]
[328146176,1716931849743,-2551.72,0.000344,3]
[328146177,1716931849754,-2551.72,0.000344,3]
[328146178,1716931849763,-2551.72,0.000344,3]
[328146179,1716931849773,-2551.72,0.000344,3]
[328146180,1716931849784,-2551.72,0.000344,3]
[328146181,1716931849794,-2551.72,0.000344,3]
[328146182,1716931849803,-2551.72,0.000344,3]
[328146183,1716931849814,-2551.72,0.000344,3]
[328146184,1716931849824,-2551.72,0.000344,3]
[328146185,1716931849833,-1001.8,0.0003442,2]
[328146186,1716931849843,-153.96,0.00034475,2]
[328146187,1716931849853,-1000.0,0.00034516,2]
[328146188,1716931849863,-1115.1487,0.00034516,2]
[328146189,1716931849872,-166.0239256,0.0003459,2]
[328146190,1716931849881,-173.14714753,0.00034592,2]
[328146191,1716931849890,-177.96800962,0.00034592,2]
[328146192,1716931849900,-150.0,0.000346,8]
[328146193,1716931849909,-160.0,0.000346,8]
[328146194,1716931849918,-150.0,0.000346,8]
[328146195,1716931849927,-160.8020285,0.0003468,2]
[328146196,1716931849937,-3139.27039764,0.00034688,2]
[328146197,1716931849946,-155.0,0.00034688,4]
[328146198,1716931849956,-336.62031228,0.00034689,2]
[328146199,1716931849965,-44351.73121832,0.0003469,11]
[328146200,1716931849978,-2957.21493839,0.0003469,11]
[328146201,1716931849989,-3306.99999996,0.0003469,11]
[328146202,1716931851636,410.08212737,0.00013973,2]
[328146203,1716931868514,148971.74953892,0.00013973,2]
[328146204,1716931875494,2360.97740153,0.00013694,2]
[328146206,1716931879102,19782.48408501,0.00013973,2]
[328146212,1716932024986,2531938.97996348,0.00013,2]
[328146214,1716932046781,2461.29111359,0.000118,2]
[328146220,1716932403024,219.84992135,0.000118,2]
[328146221,1716932517682,155.13,0.00013973,2]
[328146252,1716933032020,-321.92261338,0.00017259,2]
[328146253,1716933032034,-757.95129312,0.0002,2]
[328146254,1716933032249,-802.37958223,0.0002,2]
[328146255,1716933032259,-862.89388826,0.0002,2]
[328146256,1716933032268,-634.26621699,0.0002,2]
[328146257,1716933032277,-788.55765148,0.00023439,2]
[328146258,1716933032286,-194.88,0.0002344,5]
[328146259,1716933032295,-1759.91963402,0.00023441,20]
[328146260,1716933032304,-755.22774401,0.000236,2]
[328146261,1716933032316,-1296.13088512,0.000236,2]
[328146262,1716933032325,-1050.0,0.00025,2]
[328146263,1716933032335,-787.38474223,0.00025,30]
[328146275,1716933037926,-910.84310914,0.00025,30]
[328146278,1716933037937,-499.99,0.00025,2]
[328146280,1716933037947,-150.06178627,0.00025884,2]
[328146282,1716933037956,-1100.0,0.00027,2]
[328146284,1716933037965,-152.65,0.0002703,2]
[328146285,1716933037974,-452.40770409,0.00027397,2]
[328146287,1716933037983,-228.57532582,0.00027397,2]
[328146288,1716933037992,-600.00000199,0.00028,5]
[328146289,1716933038001,-265.41628419,0.000289,2]
[328146290,1716933038010,-250.0,0.00029049,2]
[328146291,1716933038020,-221.92,0.00029482,2]
[328146292,1716933038033,-102.11495743,0.00029561,2]
[328146293,1716933038046,-147.88504257,0.00029561,2]
[328146294,1716933038056,-267.38,0.00029849,2]
[328146295,1716933038067,-421.9455895,0.0003,4]
[328146296,1716933038076,-150.0,0.00030013,2]
[328146297,1716933038086,-158.66,0.00030789,120]
[328146298,1716933038095,-607.56054887,0.00030872,4]
[328146299,1716933038107,-152.65,0.0003094,2]
[328146300,1716933038117,-186.96498729,0.00031219,7]
[328146301,1716933038126,-155.0,0.00032,4]
[328146302,1716933038136,-221.92,0.00032222,2]
[328146303,1716933038145,-997.72,0.000327,2]
[328146304,1716933038154,-319.26,0.000327,2]
[328146305,1716933038164,-194.63378983,0.00033341,10]
[328146306,1716933038173,-1018.42004194,0.00033341,2]
[328146307,1716933038185,-2981.57996747,0.00033341,2]
[328146308,1716933038194,-686.97,0.00033379,2]
[328146309,1716933038203,-176.75003263,0.000334,10]
[328146310,1716933038214,-1823.24996737,0.000334,10]
[328146311,1716933038223,-25570.15003263,0.000334,7]
[328146312,1716933038235,-1513.29456737,0.000334,7]
[328146313,1716933038245,-273.37,0.00033431,10]
[328146314,1716933038255,-18062.45504853,0.00033441,6]
[328146315,1716933038266,-1486.4935766,0.00033441,6]
[328146316,1716933038297,-298.9533,0.00033441,6]
[328146317,1716933038309,-1001.00661564,0.00033441,6]
[328146318,1716933038320,-701.89106013,0.00033441,6]
[328146319,1716933038331,-2199.22889,0.00033441,6]
[328146320,1716933038342,-1084.17957934,0.00033441,6]
[328146321,1716933038354,-38216.05977359,0.00033441,6]
[328146322,1716933038365,-944.97926872,0.00033441,6]
[328146323,1716933039397,-353.33450113,0.00033441,6]
[328146325,1716933039409,-424.88308538,0.00033441,6]
[328146332,1716933040768,-10454.55,0.00033441,6]
[328146334,1716933041550,-15869.08105187,0.00033441,6]
[328146335,1716933041564,-534.61911616,0.00033441,6]
[328146336,1716933041576,-1112.92577071,0.00033441,6]
[328146337,1716933041662,-1013.22885838,0.00033441,6]
[328146338,1716933041674,-2107.12544579,0.00033441,6]
[328146339,1716933041685,-586.80049511,0.00033441,6]
[328146340,1716933041697,-409.45999997,0.00033441,6]
[328146341,1716933041708,-500.09,0.00033441,6]
[328146342,1716933041719,-5895.21044934,0.00033441,6]
[328146343,1716933041730,-775.77409809,0.00033441,6]
[328146344,1716933041742,-1022.04087,0.00033441,6]
[328146345,1716933041761,-4608.4,0.00033441,6]
[328146346,1716933041773,-39440.61914552,0.00033441,6]
[328146347,1716933041783,-3386.97414052,0.00033441,30]
[328146348,1716933041792,-2526.58091107,0.00033441,120]
[328146349,1716933041803,-2218.0241,0.00033479,10]
[328146350,1716933041812,-150.0,0.000335,22]
[328146351,1716933041821,-984.62,0.000335,3]
[328146352,1716933041831,-984.62,0.000335,3]
[328146353,1716933041843,-984.62,0.000335,3]
[328146354,1716933041853,-984.62,0.000335,3]
[328146355,1716933041862,-984.62,0.000335,3]
[328146357,1716933041871,-984.62,0.000335,3]
[328146359,1716933041881,-984.62,0.000335,3]
[328146361,1716933041890,-984.62,0.000335,3]
[328146363,1716933041900,-984.62,0.000335,3]
[328146365,1716933041910,-984.62,0.000335,3]
[328146366,1716933041919,-984.62,0.000335,3]
[328146368,1716933041929,-984.62,0.000335,3]
[328146370,1716933041938,-984.62,0.000335,3]
[328146372,1716933041948,-984.62,0.000335,3]
[328146374,1716933041957,-984.62,0.000335,3]
[328146376,1716933041967,-984.62,0.000335,3]
[328146378,1716933041976,-984.62,0.000335,3]
[328146380,1716933041985,-984.62,0.000335,3]
[328146382,1716933041994,-984.62,0.000335,3]
[328146384,1716933042004,-984.62,0.000335,3]
[328146386,1716933042014,-1021.46,0.000335,3]
[328146388,1716933042025,-1021.46,0.000335,3]
[328146390,1716933042037,-1021.46,0.000335,3]
[328146392,1716933042046,-1021.46,0.000335,3]
[328146394,1716933042056,-1021.46,0.000335,3]
[328146396,1716933042065,-1021.46,0.000335,3]
[328146398,1716933042075,-1021.46,0.000335,3]
[328146400,1716933042084,-1021.46,0.000335,3]
[328146402,1716933042094,-1021.46,0.000335,3]
[328146404,1716933042105,-1021.46,0.000335,3]
[328146406,1716933042115,-1021.46,0.000335,3]
[328146408,1716933042125,-1021.46,0.000335,3]
[328146410,1716933042134,-1021.46,0.000335,3]
[328146412,1716933042144,-1021.46,0.000335,3]
[328146414,1716933042153,-1021.46,0.000335,3]
[328146416,1716933042163,-1021.46,0.000335,3]
[328146418,1716933042172,-1021.46,0.000335,3]
[328146420,1716933042182,-1021.46,0.000335,3]
[328146422,1716933042191,-1021.46,0.000335,3]
[328146424,1716933042201,-1021.46,0.000335,3]
[328146426,1716933042211,-194.63378974,0.0003357,10]
[328146428,1716933042220,-267.38,0.0003358,2]
[328146431,1716933042230,-997.72,0.0003369,2]
[328146432,1716933042239,-194.63378974,0.00033799,10]
[328146434,1716933042249,-172.90187236,0.00033927,2]
[328146436,1716933042259,-516.40666,0.00033999,2]
[328146439,1716933042268,-500.0,0.00033999,2]
[328146440,1716933042277,-500.0,0.00033999,2]
[328146443,1716933042287,-150.0,0.00034,23]
[328146445,1716933042296,-984.62,0.00034,3]
[328146447,1716933042305,-984.62,0.00034,3]
[328146449,1716933042315,-984.62,0.00034,3]
[328146451,1716933042324,-984.62,0.00034,3]
[328146452,1716933042333,-984.62,0.00034,3]
[328146454,1716933042344,-984.62,0.00034,3]
[328146456,1716933042354,-984.62,0.00034,3]
[328146458,1716933042362,-984.62,0.00034,3]
[328146460,1716933042372,-984.62,0.00034,3]
[328146462,1716933042381,-984.62,0.00034,3]
[328146464,1716933042390,-984.62,0.00034,3]
[328146467,1716933042400,-984.62,0.00034,3]
[328146469,1716933042409,-984.62,0.00034,3]
[328146471,1716933042418,-984.62,0.00034,3]
[328146473,1716933042427,-984.62,0.00034,3]
[328146475,1716933042437,-984.62,0.00034,3]
[328146477,1716933042446,-984.62,0.00034,3]
[328146479,1716933042454,-984.62,0.00034,3]
[328146481,1716933042463,-984.62,0.00034,3]
[328146483,1716933042472,-984.62,0.00034,3]
[328146485,1716933042481,-1021.46,0.00034,3]
[328146487,1716933042491,-1021.46,0.00034,3]
[328146489,1716933042500,-1021.46,0.00034,3]
[328146491,1716933042509,-1021.46,0.00034,3]
[328146493,1716933042519,-1021.46,0.00034,3]
[328146495,1716933042529,-1021.46,0.00034,3]
[328146497,1716933042538,-1021.46,0.00034,3]
[328146499,1716933042547,-1021.46,0.00034,3]
[328146501,1716933042557,-1021.46,0.00034,3]
[328146503,1716933042566,-1021.46,0.00034,3]
[328146505,1716933042576,-1021.46,0.00034,3]
[328146507,1716933042585,-1021.46,0.00034,3]
[328146509,1716933042596,-1021.46,0.00034,3]
[328146511,1716933042605,-1021.46,0.00034,3]
[328146513,1716933042614,-1021.46,0.00034,3]
[328146515,1716933042623,-1021.46,0.00034,3]
[328146517,1716933042632,-1021.46,0.00034,3]
[328146519,1716933042643,-1021.46,0.00034,3]
[328146521,1716933042652,-1021.46,0.00034,3]
[328146523,1716933042661,-1021.46,0.00034,3]
[328146525,1716933042670,-2240.2532994,0.00034,4]
[328146543,1716933043094,-611.7467006,0.00034,4]
[328146544,1716933043104,-3271.0,0.00034,4]
[328146545,1716933043115,-1356.0,0.00034,4]
[328146546,1716933043124,-937.0,0.00034,4]
[328146547,1716933043133,-1287.0,0.00034,4]
[328146548,1716933043143,-194.63378974,0.00034027,10]
[328146549,1716933043152,-319.26,0.0003416,2]
[328146550,1716933043161,-141.29184581,0.00034256,10]
[328146551,1716933043313,-53.34194393,0.00034256,10]
[328146552,1716933043323,-500.0,0.00034273,2]
[328146553,1716933043332,-172.90187236,0.00034295,2]
[328146554,1716933043343,-380.70037141,0.00034382,2]
[328146555,1716933043352,-2000.0,0.000344,12]
[328146556,1716933043362,-984.62,0.000344,3]
[328146557,1716933043371,-984.62,0.000344,3]
[328146558,1716933043380,-442.16349737,0.000344,3]
[328146559,1716933043392,-542.45650263,0.000344,3]
[328146560,1716933043401,-49.84074836,0.000344,3]
[328146561,1716933043412,-934.77925164,0.000344,3]
[328146562,1716933043422,-984.62,0.000344,3]
[328146563,1716933043431,-807.62872635,0.000344,3]
[328146564,1716933043442,-176.99127365,0.000344,3]
[328146565,1716933043452,-984.62,0.000344,3]
[328146566,1716933043462,-984.62,0.000344,3]
[328146567,1716933043471,-984.62,0.000344,3]
[328146568,1716933043481,-984.62,0.000344,3]
[328146569,1716933043490,-984.62,0.000344,3]
[328146570,1716933043499,-984.62,0.000344,3]
[328146571,1716933043508,-984.62,0.000344,3]
[328146572,1716933043518,-984.62,0.000344,3]
[328146573,1716933043527,-984.62,0.000344,3]
[328146574,1716933043537,-984.62,0.000344,3]
[328146575,1716933043546,-984.62,0.000344,3]
[328146576,1716933043556,-984.62,0.000344,3]
[328146577,1716933043566,-984.62,0.000344,3]
[328146578,1716933043576,-984.62,0.000344,3]
[328146579,1716933043586,-1021.46,0.000344,3]
[328146580,1716933043596,-1021.46,0.000344,3]
[328146581,1716933043606,-1021.46,0.000344,3]
[328146582,1716933043615,-1021.46,0.000344,3]
[328146583,1716933043624,-1021.46,0.000344,3]
[328146584,1716933043634,-1021.46,0.000344,3]
[328146585,1716933043643,-1021.46,0.000344,3]
[328146586,1716933043652,-1021.46,0.000344,3]
[328146587,1716933043662,-1021.46,0.000344,3]
[328146588,1716933043671,-1021.46,0.000344,3]
[328146589,1716933043680,-1021.46,0.000344,3]
[328146590,1716933043690,-1021.46,0.000344,3]
[328146591,1716933043699,-1021.46,0.000344,3]
[328146592,1716933043709,-1021.46,0.000344,3]
[328146593,1716933043718,-1021.46,0.000344,3]
[328146595,1716933043728,-1021.46,0.000344,3]
[328146597,1716933043738,-1021.46,0.000344,3]
[328146599,1716933043748,-1021.46,0.000344,3]
[328146601,1716933043757,-1021.46,0.000344,3]
[328146603,1716933043766,-1021.46,0.000344,3]
[328146605,1716933043775,-608.0,0.00034435,2]
[328146607,1716933043784,-194.63378974,0.00034485,10]
[328146609,1716933043793,-150.0,0.000345,23]
[328146611,1716933043803,-750.0,0.00034528,20]
[328146613,1716933043812,-500.0,0.00034547,2]
[328146615,1716933043821,-300.0,0.00034559,120]
[328146617,1716933043831,-11295.0,0.00034575,8]
[328146619,1716933043840,-236.86098156,0.0003459,7]
[328146621,1716933043849,-10000.0,0.0003459,120]
[328146623,1716933043858,-150.0,0.000346,8]
[328146624,1716933043871,-150.0,0.000346,8]
[328146625,1716933043880,-300.0,0.00034619,30]
[328146626,1716933043889,-172.90187236,0.00034664,2]
[328146627,1716933043898,-997.72,0.0003468,2]
[328146628,1716933043907,-155.93,0.0003468,2]
[328146629,1716933043916,-282.50063781,0.00034688,4]
[328146630,1716933043926,-602.04316684,0.00034688,30]
[328146631,1716933043935,-155.0,0.00034688,4]
[328146632,1716933043944,-529.56363621,0.00034688,4]
[328146633,1716933043953,-323.59622047,0.00034688,4]
[328146634,1716933043962,-1603.10006197,0.00034688,2]
[328146635,1716933043971,-253.0,0.0003469,5]
[328146636,1716933043980,-79009.86944785,0.0003469,11]
[328146637,1716933044746,-41662.82809785,0.0003469,11]
[328146638,1716933044757,-3175.33849613,0.0003469,11]
[328146639,1716933044768,-563.8784653,0.0003469,11]
[328146640,1716933044780,-7074.12880454,0.0003469,11]
[328146641,1716933044789,-265.44759322,0.0003469,12]
[328146642,1716933044801,-4043.23692891,0.0003469,12]
[328146643,1716933044819,-748.12442162,0.00034689,4]
[328146644,1716933046141,-311.35802759,0.00034689,4]
[328146645,1716933046151,-317.96364489,0.00034689,4]
[328146646,1716933046410,-270.462826,0.00034689,4]
[328146647,1716933046423,-1748.9835148,0.00034689,4]
[328146655,1716933046435,-418.73404577,0.00034689,4]
[328146656,1716933046610,-443.68712278,0.00034689,3]
[328146738,1716933640925,154.26,0.00013973,2]
[328146790,1716934232400,-214.61507558,0.00017259,2]
[328146791,1716934232410,-148.65222442,0.0002,2]
[328146792,1716934232423,-485.61399257,0.0002,2]
[328146793,1716934232435,-387.25950743,0.00021998,2]
[328146794,1716934232447,-475.63438083,0.00021998,2]
[328146795,1716934232457,-200.0,0.00022,2]
[328146796,1716934232468,-200.0,0.00022,2]
[328146797,1716934232477,-161.15136917,0.000236,2]
[328146798,1716934232489,-338.83863083,0.000236,2]
[328146799,1716934232498,-2051.35862913,0.00025999,2]
[328146800,1716934232508,-1743.0,0.00026,3]
[328146801,1716934232517,-596.0,0.00026,3]
[328146802,1716934232526,-154.26,0.00026274,2]
[328146803,1716934232535,-265.41628419,0.000289,2]
[328146804,1716934232544,-3854.0,0.000289,5]
[328146805,1716934232554,-152.23,0.00029807,2]
[328146806,1716934232563,-150.0,0.00030096,2]
[328146807,1716934232573,-452.19863709,0.00030872,4]
[328146808,1716934232582,-402.08776905,0.00031219,4]
[328146809,1716934232592,-150.0,0.000315,20]
[328146810,1716934232602,-158.66,0.00031551,120]
[328146811,1716934232611,-250.0,0.00031848,2]
[328146812,1716934232620,-267.45,0.00031929,2]
[328146813,1716934232629,-250.0,0.00031949,2]
[328146814,1716934232639,-150.0,0.00032,20]
[328146815,1716934232648,-431.55,0.00032159,2]
[328146816,1716934232657,-176.67,0.00032439,120]
[328146817,1716934232667,-150.0,0.000325,21]
[328146818,1716934232676,-1012.78,0.000327,2]
[328146819,1716934232686,-317.14,0.000327,2]
[328146820,1716934232695,-150.0,0.00033,22]
[328146821,1716934232704,-370.0328,0.00033241,2]
[328146822,1716934232713,-407.59,0.00033331,10]
[328146823,1716934232723,-339.66,0.00033331,10]
[328146824,1716934232732,-283.05,0.00033331,10]
[328146825,1716934232742,-43081.9889,0.00033341,2]
[328146826,1716934232751,-46097.4086,0.00033341,2]
[328146827,1716934232760,-152.23,0.00033392,2]
[328146828,1716934232769,-2000.0,0.000334,10]
[328146830,1716934232778,-394.14,0.000335,3]
[328146832,1716934232788,-394.14,0.000335,3]
[328146834,1716934232797,-394.14,0.000335,3]
[328146837,1716934232807,-394.14,0.000335,3]
[328146839,1716934232816,-394.14,0.000335,3]
[328146841,1716934232825,-394.14,0.000335,3]
[328146842,1716934232834,-394.14,0.000335,3]
[328146843,1716934232844,-394.14,0.000335,3]
[328146844,1716934232854,-394.14,0.000335,3]
[328146845,1716934232864,-394.14,0.000335,3]
[328146847,1716934232874,-394.14,0.000335,3]
[328146849,1716934232883,-394.14,0.000335,3]
[328146851,1716934232893,-394.14,0.000335,3]
[328146853,1716934232903,-394.14,0.000335,3]
[328146855,1716934232912,-394.14,0.000335,3]
[328146856,1716934232922,-394.14,0.000335,3]
[328146857,1716934232932,-394.14,0.000335,3]
[328146858,1716934232941,-394.14,0.000335,3]
[328146859,1716934232950,-394.14,0.000335,3]
[328146860,1716934232961,-394.14,0.000335,3]
[328146861,1716934232970,-408.89,0.000335,3]
[328146862,1716934232980,-408.89,0.000335,3]
[328146863,1716934232989,-408.89,0.000335,3]
[328146864,1716934233000,-408.89,0.000335,3]
[328146865,1716934233009,-408.89,0.000335,3]
[328146866,1716934233018,-408.89,0.000335,3]
[328146867,1716934233027,-408.89,0.000335,3]
[328146868,1716934233037,-408.89,0.000335,3]
[328146869,1716934233046,-408.89,0.000335,3]
[328146870,1716934233055,-408.89,0.000335,3]
[328146871,1716934233064,-408.89,0.000335,3]
[328146872,1716934233073,-408.89,0.000335,3]
[328146873,1716934233083,-408.89,0.000335,3]
[328146874,1716934233092,-408.89,0.000335,3]
[328146875,1716934233102,-408.89,0.000335,3]
[328146876,1716934233111,-408.89,0.000335,3]
[328146877,1716934233121,-408.89,0.000335,3]
[328146878,1716934233130,-408.89,0.000335,3]
[328146879,1716934233139,-408.89,0.000335,3]
[328146880,1716934233148,-408.89,0.000335,3]
[328146881,1716934233158,-150.0,0.000335,22]
[328146882,1716934233168,-511.338576,0.0003385,2]
[328146883,1716934233178,-169.42,0.00033865,2]
[328146884,1716934233188,-394.14,0.00034,3]
[328146885,1716934233197,-394.14,0.00034,3]
[328146886,1716934233206,-394.14,0.00034,3]
[328146887,1716934233217,-394.14,0.00034,3]
[328146888,1716934233228,-394.14,0.00034,3]
[328146889,1716934233238,-394.14,0.00034,3]
[328146890,1716934233248,-394.14,0.00034,3]
[328146891,1716934233258,-394.14,0.00034,3]
[328146892,1716934233268,-394.14,0.00034,3]
[328146893,1716934233278,-394.14,0.00034,3]
[328146894,1716934233287,-394.14,0.00034,3]
[328146895,1716934233299,-394.14,0.00034,3]
[328146896,1716934233308,-394.14,0.00034,3]
[328146897,1716934233318,-394.14,0.00034,3]
[328146898,1716934233328,-394.14,0.00034,3]
[328146899,1716934233338,-394.14,0.00034,3]
[328146900,1716934233348,-394.14,0.00034,3]
[328146901,1716934233357,-394.14,0.00034,3]
[328146902,1716934233366,-394.14,0.00034,3]
[328146903,1716934233375,-394.14,0.00034,3]
[328146904,1716934233385,-408.89,0.00034,3]
[328146905,1716934233398,-408.89,0.00034,3]
[328146906,1716934233407,-408.89,0.00034,3]
[328146907,1716934233419,-408.89,0.00034,3]
[328146908,1716934233429,-408.89,0.00034,3]
[328146909,1716934233438,-408.89,0.00034,3]
[328146910,1716934233447,-408.89,0.00034,3]
[328146911,1716934233457,-408.89,0.00034,3]
[328146912,1716934233472,-408.89,0.00034,3]
[328146913,1716934233482,-408.89,0.00034,3]
[328146914,1716934233492,-408.89,0.00034,3]
[328146915,1716934233502,-408.89,0.00034,3]
[328146916,1716934233511,-408.89,0.00034,3]
[328146917,1716934233520,-408.89,0.00034,3]
[328146918,1716934233530,-408.89,0.00034,3]
[328146919,1716934233539,-408.89,0.00034,3]
[328146920,1716934233548,-408.89,0.00034,3]
[328146921,1716934233558,-408.89,0.00034,3]
[328146922,1716934233567,-408.89,0.00034,3]
[328146923,1716934233576,-408.89,0.00034,3]
[328146924,1716934233586,-150.0,0.00034,23]
[328146925,1716934233595,-1426.0,0.00034,4]
[328146926,1716934233606,-1636.0,0.00034,4]
[328146927,1716934233615,-678.0,0.00034,4]
[328146928,1716934233623,-644.0,0.00034,4]
[328146929,1716934233632,-1012.78,0.0003412,2]
[328146930,1716934233641,-500.0,0.00034189,30]
[328146931,1716934233650,-500.0,0.00034189,30]
[328146932,1716934233660,-500.0,0.00034189,30]
[328146933,1716934233669,-155.7070318,0.000343,10]
[328146934,1716934233678,-7417.38,0.00034323,5]
[328146935,1716934233687,-2000.0,0.000344,12]
[328146936,1716934233696,-394.14,0.000344,3]
[328146937,1716934233706,-394.14,0.000344,3]
[328146938,1716934233715,-394.14,0.000344,3]
[328146939,1716934233723,-394.14,0.000344,3]
[328146940,1716934233733,-394.14,0.000344,3]
[328146941,1716934233742,-394.14,0.000344,3]
[328146942,1716934233751,-394.14,0.000344,3]
[328146943,1716934233761,-394.14,0.000344,3]
[328146944,1716934233770,-394.14,0.000344,3]
[328146945,1716934233779,-394.14,0.000344,3]
[328146946,1716934233788,-394.14,0.000344,3]
[328146947,1716934233797,-394.14,0.000344,3]
[328146948,1716934233806,-394.14,0.000344,3]
[328146949,1716934233815,-394.14,0.000344,3]
[328146950,1716934233824,-394.14,0.000344,3]
[328146951,1716934233833,-394.14,0.000344,3]
[328146952,1716934233843,-394.14,0.000344,3]
[328146953,1716934233853,-394.14,0.000344,3]
[328146954,1716934233862,-394.14,0.000344,3]
[328146955,1716934233872,-394.14,0.000344,3]
[328146956,1716934233881,-408.89,0.000344,3]
[328146957,1716934233890,-408.89,0.000344,3]
[328146958,1716934233899,-408.89,0.000344,3]
[328146959,1716934233909,-408.89,0.000344,3]
[328146960,1716934233919,-408.89,0.000344,3]
[328146961,1716934233928,-408.89,0.000344,3]
[328146962,1716934233937,-408.89,0.000344,3]
[328146963,1716934233946,-408.89,0.000344,3]
[328146964,1716934233955,-408.89,0.000344,3]
[328146965,1716934233965,-408.89,0.000344,3]
[328146966,1716934233974,-408.89,0.000344,3]
[328146967,1716934233983,-408.89,0.000344,3]